bitfinex/quotes_BTCUSD_20240905
["timestamp","ask_amount","ask_price","bid_price","bid_amount"]
[1725507246024,0.100816,57304.0,57303.0,0.21922055]
[1725507246238,0.100816,57304.0,57303.0,0.2073]
[1725507246469,0.100816,57304.0,57303.0,0.21922055]
[1725507246733,0.100816,57304.0,57303.0,0.25424055]
[1725507246954,0.100816,57304.0,57303.0,0.40682949]
[1725507247169,0.000816,57304.0,57303.0,0.40682949]
[1725507247386,0.100816,57304.0,57303.0,0.40682949]
[1725507247609,0.100816,57304.0,57303.0,0.40334055]
[1725507249164,0.0570519,57304.0,57303.0,0.40334055]
[1725507249631,0.000815,57308.0,57303.0,0.40334055]
[1725507249853,0.000815,57308.0,57305.0,0.21932]
[1725507250076,0.000815,57308.0,57306.0,0.00348868]
[1725507250302,0.000815,57308.0,57307.0,0.21932]
[1725507250532,0.000815,57308.0,57307.0,0.25416471]
[1725507250782,0.000815,57308.0,57307.0,0.25765342]
[1725507250998,0.000815,57308.0,57307.0,0.25416471]
[1725507257479,0.000815,57308.0,57307.0,0.2576533]
[1725507258166,0.000815,57308.0,57307.0,0.25416471]
[1725507259562,0.000815,57308.0,57307.0,0.25765324]
[1725507259980,0.000815,57308.0,57307.0,0.25416471]
[1725507262564,0.000815,57308.0,57307.0,0.32417671]
[1725507265428,0.871701,57308.0,57307.0,0.26615671]
[1725507265665,1.287347,57308.0,57307.0,0.01184471]
[1725507265895,1.55901476,57308.0,57307.0,0.01184471]
[1725507266120,1.55901476,57308.0,57301.0,0.001632]
[1725507266121,0.610797,57302.0,57301.0,0.001632]
[1725507266353,0.993097,57302.0,57301.0,0.001632]
[1725507266569,1.530916,57302.0,57301.0,0.001632]
[1725507267266,1.775235,57302.0,57301.0,0.001632]
[1725507269077,2.019554,57302.0,57301.0,0.001632]
[1725507269960,1.775235,57302.0,57301.0,0.001632]
[1725507274086,1.74827913,57302.0,57301.0,0.001632]
[1725507280706,1.99259813,57302.0,57301.0,0.001632]
[1725507281091,1.74827913,57302.0,57301.0,0.001632]
[1725507281912,1.76656235,57302.0,57301.0,0.001632]
[1725507282554,1.57306235,57302.0,57301.0,0.001632]
[1725507284657,2.01598135,57302.0,57301.0,0.001632]
[1725507285802,2.0433657,57302.0,57301.0,0.001632]
[1725507289800,2.2876847,57302.0,57301.0,0.001632]
[1725507290927,2.0433657,57302.0,57301.0,0.001632]
[1725507291990,2.0441817,57302.0,57301.0,0.001632]
[1725507294618,2.0441817,57302.0,57301.0,1e-06]
[1725507295260,2.2885007,57302.0,57301.0,1e-06]
[1725507297652,1.344128,57286.0,57285.0,0.001632]
[1725507297884,1.927728,57286.0,57285.0,0.001632]
[1725507298110,2.027728,57286.0,57285.0,0.001632]
[1725507298577,2.04601122,57286.0,57285.0,0.001632]
[1725507299237,2.04601122,57286.0,57285.0,0.024632]
[1725507299701,2.29039822,57286.0,57285.0,0.001632]
[1725507300399,0.7359,57283.0,57282.0,1e-06]
[1725507300619,1.2247,57283.0,57282.0,1e-06]
[1725507300879,1.7135,57283.0,57282.0,1e-06]
[1725507301099,2.5706096,57283.0,57282.0,1e-06]
[1725507302021,1.344552,57268.0,57261.0,0.52650515]
[1725507302259,2.3209616,57268.0,57261.0,0.52650515]
[1725507302486,2.3209616,57268.0,57251.0,0.00164]
[1725507302487,2.3209616,57268.0,57267.0,0.01424361]
[1725507303143,2.3209616,57268.0,57267.0,0.00164]
[1725507303585,2.0764976,57268.0,57267.0,0.00164]
[1725507303822,1.4683976,57268.0,57267.0,0.00164]
[1725507304051,0.955624,57268.0,57267.0,0.00164]
[1725507307581,0.98302091,57268.0,57267.0,0.00164]
[1725507315272,0.955624,57268.0,57267.0,0.00164]
[1725507316767,0.97390722,57268.0,57267.0,0.00164]
[1725507317678,1.24221682,57268.0,57267.0,0.00164]
[1725507317897,1.64881682,57268.0,57267.0,0.00164]
[1725507318331,2.08038082,57268.0,57267.0,0.00164]
[1725507318967,2.32484482,57268.0,57267.0,0.00164]
[1725507319185,2.08038082,57268.0,57267.0,0.00164]
[1725507319609,2.32484482,57268.0,57267.0,0.00164]
[1725507320062,2.35224451,57268.0,57267.0,0.00164]
[1725507321600,1.24577091,57268.0,57267.0,0.00164]
[1725507321818,1.51408051,57268.0,57267.0,0.00164]
[1725507322027,1.48668082,57268.0,57267.0,0.00164]
[1725507322672,1.24221682,57268.0,57267.0,0.00164]
[1725507323098,1.48668082,57268.0,57267.0,0.00164]
[1725507327084,1.21837122,57268.0,57267.0,0.00164]
[1725507327527,0.87390722,57268.0,57267.0,0.00164]
[1725507328676,0.01828322,57268.0,57267.0,0.62956126]
[1725507328922,0.14051522,57268.0,57267.0,0.6490696]
[1725507329164,0.122221,57274.0,57267.0,0.84597321]
[1725507329404,0.122219,57274.0,57273.0,0.4174096]
[1725507329628,0.122219,57274.0,57273.0,0.4528993]
[1725507329863,0.01828322,57277.0,57274.0,0.172]
[1725507330149,0.122209,57279.0,57275.0,0.21975174]
[1725507330388,0.122206,57281.0,57276.0,0.42090048]
[1725507330624,0.000816,57282.0,57277.0,0.023]
[1725507330864,0.000816,57282.0,57277.0,0.03541378]
[1725507331101,0.122206,57280.0,57277.0,0.03541378]
[1725507331444,0.000816,57282.0,57277.0,0.03541378]
[1725507331610,0.100816,57282.0,57277.0,0.03541378]
[1725507331880,0.100816,57282.0,57277.0,0.023]
[1725507331881,0.12221,57278.0,57277.0,0.023]
[1725507332110,0.1,57278.0,57277.0,0.023]
[1725507332554,0.22221,57278.0,57277.0,0.023]
[1725507333038,0.1,57278.0,57277.0,0.023]
[1725507333244,0.222209,57279.0,57277.0,0.023]
[1725507333458,0.12221,57278.0,57277.0,0.023]
[1725507333705,0.1,57278.0,57277.0,0.023]
[1725507335008,0.222207,57280.0,57277.0,0.023]
[1725507335275,0.344414,57280.0,57277.0,0.023]
[1725507335488,0.12221,57278.0,57277.0,0.023]
[1725507335737,0.1,57278.0,57277.0,0.023]
[1725507336833,0.1,57279.0,57277.0,0.023]
[1725507337044,0.222208,57279.0,57277.0,0.023]
[1725507339613,0.12221,57278.0,57277.0,0.023]
[1725507339821,0.366631,57278.0,57277.0,0.023]
[1725507340031,0.466631,57278.0,57277.0,0.023]
[1725507341091,0.466631,57278.0,57277.0,0.09305]
[1725507342156,0.1,57278.0,57277.0,0.12807]
[1725507342371,0.22221,57278.0,57277.0,0.12807]
[1725507343295,0.1,57278.0,57277.0,0.12807]
[1725507343504,0.1,57281.0,57277.0,0.12807]
[1725507343716,0.1,57281.0,57280.0,0.03502]
[1725507343941,0.1,57281.0,57280.0,0.05802]
[1725507344405,0.000816,57283.0,57282.0,0.03502]
[1725507344626,0.01828322,57296.0,57292.0,0.2683096]
[1725507344846,0.604,57295.0,57293.0,0.023]
[1725507345069,0.1222,57283.0,57282.0,0.1491]
[1725507345600,0.366631,57278.0,57277.0,0.21915]
[1725507345821,0.366631,57278.0,57277.0,0.07005]
[1725507346044,0.366631,57278.0,57277.0,0.09305]
[1725507346045,0.12221,57278.0,57277.0,0.09305]
[1725507346514,0.466631,57278.0,57277.0,0.09305]
[1725507346744,0.1,57278.0,57277.0,0.09305]
[1725507347708,0.222209,57279.0,57277.0,0.09305]
[1725507347926,0.222209,57279.0,57278.0,0.023]
[1725507348989,0.466626,57279.0,57278.0,0.023]
[1725507350159,0.222209,57279.0,57278.0,0.023]
[1725507352156,0.466626,57279.0,57278.0,0.023]
[1725507352406,0.1,57279.0,57278.0,0.023]
[1725507353075,0.122208,57279.0,57278.0,0.023]
[1725507353360,0.1,57279.0,57278.0,0.023]
[1725507354510,0.2444,57284.0,57278.0,0.023]
[1725507354511,0.222206,57280.0,57278.0,0.023]
[1725507355973,0.222206,57280.0,57279.0,0.03502]
[1725507356196,0.222206,57280.0,57279.0,0.05802]
[1725507358011,0.466619,57280.0,57279.0,0.05802]
[1725507358256,0.711032,57280.0,57279.0,0.05802]
[1725507358496,0.50751,57278.0,57277.0,0.001632]
[1725507358726,1.7019826,57278.0,57277.0,0.001632]
[1725507358972,2.0464036,57278.0,57277.0,0.001632]
[1725507362145,2.07379446,57278.0,57277.0,0.001632]
[1725507362616,2.31821546,57278.0,57277.0,0.001632]
[1725507363107,2.56263646,57278.0,57277.0,0.001632]
[1725507364619,2.29432686,57278.0,57277.0,0.001632]
[1725507364825,2.56263646,57278.0,57277.0,0.001632]
[1725507368800,2.5352456,57278.0,57277.0,0.001632]
[1725507369458,2.5352456,57278.0,57277.0,1e-06]
[1725507373451,2.5352456,57278.0,57241.0,0.1843]
[1725507373452,1.685694,57252.0,57244.0,0.4729]
[1725507373666,1.685694,57252.0,57248.0,0.03502]
[1725507373883,1.785694,57252.0,57243.0,0.52814515]
[1725507374137,1.785694,57252.0,57246.0,0.03502]
[1725507374592,2.0540036,57252.0,57246.0,0.03502]
[1725507374815,1.785694,57252.0,57246.0,0.03502]
[1725507375044,2.0540036,57252.0,57246.0,0.03502]
[1725507376166,2.0540036,57252.0,57247.0,0.023]
[1725507377930,2.05954702,57252.0,57247.0,0.023]
[1725507378155,2.08695153,57252.0,57247.0,0.023]
[1725507382309,2.08695153,57252.0,57250.0,0.00349338]
[1725507382310,0.98326651,57252.0,57250.0,0.00349338]
[1725507382541,0.49420251,57252.0,57251.0,0.20876]
[1725507382777,0.73873451,57252.0,57251.0,0.20876]
[1725507383022,0.466798,57252.0,57251.0,0.20876]
[1725507383512,0.244496,57261.0,57251.0,0.20876]
[1725507383748,0.01828322,57260.0,57251.0,0.20876]
[1725507383988,0.122266,57252.0,57251.0,0.20876]
[1725507384276,1.100817,57230.0,57229.0,0.05226756]
[1725507384536,0.304989,57252.0,57226.0,0.00788612]
[1725507384537,0.122319,57227.0,57226.0,0.00788612]
[1725507384801,0.856236,57227.0,57226.0,0.00788612]
[1725507385297,0.956236,57227.0,57226.0,0.00788612]
[1725507386017,0.711597,57227.0,57226.0,0.00788612]
[1725507388184,0.711597,57227.0,57226.0,0.03088612]
[1725507389362,0.466958,57227.0,57226.0,0.03088612]
[1725507389606,0.244619,57232.0,57226.0,0.03088612]
[1725507389847,0.244619,57232.0,57227.0,0.023]
[1725507390077,0.366952,57228.0,57227.0,0.023]
[1725507391195,0.611587,57228.0,57227.0,0.023]
[1725507392372,0.244623,57231.0,57227.0,0.023]
[1725507392566,0.122317,57228.0,57227.0,0.023]
[1725507392788,0.366952,57228.0,57227.0,0.023]
[1725507393239,0.366952,57228.0,57227.0,0.02296]
[1725507393702,0.122317,57228.0,57227.0,0.02296]
[1725507394186,0.366952,57228.0,57227.0,0.02296]
[1725507395169,0.122317,57228.0,57227.0,0.05798]
[1725507396066,0.366952,57228.0,57227.0,0.05798]
[1725507397030,0.611587,57228.0,57227.0,0.05798]
[1725507397330,1.5007316,57228.0,57227.0,0.03502]
[1725507397579,1.5007316,57228.0,57226.0,0.00951812]
[1725507397580,0.856236,57227.0,57226.0,0.00951812]
[1725507397795,1.200875,57227.0,57226.0,0.00951812]
[1725507398289,0.956236,57227.0,57226.0,0.00951812]
[1725507399723,1.200875,57227.0,57226.0,0.00951812]
[1725507403601,2.29906295,57227.0,57226.0,0.00951812]
[1725507405490,2.29906295,57227.0,57201.0,0.0115398]
[1725507405491,0.704173,57202.0,57201.0,0.0115398]
[1725507405699,0.704173,57202.0,57200.0,4.4064408]
[1725507405700,0.367125,57201.0,57200.0,4.4064408]
[1725507405926,0.367125,57201.0,57200.0,3.9898408]
[1725507405927,3.82699855,57201.0,57200.0,3.9898408]
[1725507406110,5.47232077,57201.0,57200.0,3.9898408]
[1725507406353,2.22272349,57201.0,57200.0,3.9898408]
[1725507406583,2.4684142,57201.0,57200.0,3.9898408]
[1725507406793,2.48212415,57201.0,57200.0,3.9898408]
[1725507407207,2.61118157,57201.0,57200.0,2.4232408]
[1725507407550,2.61118157,57201.0,57150.0,0.0023]
[1725507407551,0.5,57151.0,57150.0,0.0023]
[1725507407801,0.5,57151.0,57127.0,0.52650515]
[1725507407802,0.85772,57128.0,57127.0,0.52650515]
[1725507407962,0.612657,57128.0,57127.0,0.89403828]
[1725507408151,0.122521,57133.0,57127.0,0.5585]
[1725507408372,0.02745792,57128.0,57127.0,0.59352]
[1725507408597,0.1,57142.0,57132.0,0.03502]
[1725507408797,0.0146,57149.0,57137.0,0.3033296]
[1725507409000,0.24493,57160.0,57141.0,0.3033296]
[1725507409356,0.24493,57160.0,57128.0,0.245062]
[1725507409357,0.61268,57126.0,57125.0,0.4755]
[1725507409573,0.122506,57140.0,57126.0,0.4055]
[1725507409801,0.7053,57159.0,57126.0,0.4055]
[1725507409802,0.122503,57142.0,57126.0,0.475728]
[1725507410033,0.122504,57141.0,57126.0,0.475728]
[1725507410257,0.122497,57144.0,57127.0,0.122533]
[1725507410478,0.122509,57139.0,57128.0,0.17321661]
[1725507410715,0.02745402,57156.0,57134.0,0.03502]
[1725507410937,0.1,57156.0,57136.0,0.03502]
[1725507411158,0.1,57157.0,57138.0,0.03502]
[1725507411380,0.1,57161.0,57140.0,0.03502]
[1725507411662,0.45913099,57156.0,57141.0,0.0273419]
[1725507411885,0.45913099,57156.0,57141.0,0.0623619]
[1725507411886,0.122479,57153.0,57141.0,0.0623619]
[1725507412106,0.1,57152.0,57141.0,0.0623619]
[1725507412325,0.344948,57155.0,57142.0,0.03851916]
[1725507412326,0.222475,57155.0,57142.0,0.03851916]
[1725507412599,0.122481,57152.0,57142.0,0.03502]
[1725507412807,0.1,57151.0,57143.0,0.05385671]
[1725507413018,0.122478,57153.0,57143.0,0.05385671]
[1725507413234,0.1,57152.0,57143.0,0.05385671]
[1725507413461,0.1,57155.0,57143.0,0.05385671]
[1725507413681,0.1,57155.0,57141.0,0.0273419]
[1725507413682,0.33665899,57146.0,57141.0,0.0273419]
[1725507413936,0.33665899,57148.0,57141.0,0.0273419]
[1725507414151,0.122496,57145.0,57141.0,0.0273419]
[1725507414369,0.244982,57147.0,57141.0,0.0273419]
[1725507414370,0.122498,57144.0,57141.0,0.0273419]
[1725507414592,0.1,57143.0,57142.0,0.52650515]
[1725507414807,0.244934,57159.0,57141.0,0.0273419]
[1725507415018,0.244856,57177.0,57141.0,0.0273419]
[1725507415019,0.122481,57152.0,57141.0,0.0273419]
[1725507415241,0.33665899,57156.0,57142.0,0.03798479]
[1725507415482,0.122488,57149.0,57142.0,0.03798479]
[1725507415918,0.122484,57151.0,57142.0,0.03798479]
[1725507416137,0.122485,57150.0,57142.0,0.03798479]
[1725507416576,0.122489,57148.0,57142.0,0.03798479]
[1725507416785,0.1,57147.0,57142.0,0.03798479]
[1725507417222,0.122499,57144.0,57143.0,0.01003467]
[1725507417445,0.33665899,57145.0,57126.0,0.52814115]
[1725507417695,0.33665899,57145.0,57127.0,0.441885]
[1725507417904,0.122514,57137.0,57128.0,0.10400261]
[1725507418122,0.245009,57141.0,57128.0,0.10400261]
[1725507418123,0.222514,57136.0,57128.0,0.10400261]
[1725507418542,0.222514,57136.0,57129.0,0.03502]
[1725507418755,0.345029,57136.0,57129.0,0.03502]
[1725507418971,0.43665899,57136.0,57131.0,0.03502]
[1725507419184,0.222515,57136.0,57131.0,0.03502]
[1725507419426,0.122518,57135.0,57131.0,0.03502]
[1725507419641,0.1,57134.0,57132.0,0.03502]
[1725507419859,0.12251,57138.0,57132.0,0.03502]
[1725507420073,0.245001,57143.0,57134.0,0.03502]
[1725507420344,0.33665899,57148.0,57136.0,0.03502]
[1725507420345,0.122509,57139.0,57136.0,0.03502]
[1725507420552,0.122507,57140.0,57137.0,0.00349992]
[1725507420766,0.122509,57139.0,57137.0,0.02649992]
[1725507420999,0.244997,57144.0,57137.0,0.02649992]
[1725507421435,0.24501,57141.0,57137.0,0.023]
[1725507421648,0.12251,57138.0,57137.0,0.023]
[1725507422083,0.46753,57138.0,57137.0,0.023]
[1725507422309,0.122507,57140.0,57137.0,0.02649998]
[1725507422533,0.244996,57144.0,57138.0,0.4]
[1725507422756,0.33665899,57152.0,57139.0,0.05391638]
[1725507422969,0.122504,57141.0,57139.0,0.05391638]
[1725507423195,0.122496,57145.0,57139.0,0.05391638]
[1725507423415,0.33665899,57146.0,57139.0,0.05391638]
[1725507423626,0.367518,57140.0,57139.0,0.05041671]
[1725507424284,0.1225,57143.0,57139.0,0.05041671]
[1725507424511,0.122503,57141.0,57140.0,0.03502]
[1725507424730,0.58164399,57147.0,57140.0,0.05802]
[1725507424731,0.122497,57145.0,57140.0,0.05802]
[1725507424951,0.33665899,57147.0,57141.0,0.00349961]
[1725507425172,0.367518,57140.0,57139.0,0.05041671]
[1725507425412,0.61253,57140.0,57139.0,0.05041671]
[1725507425634,0.957542,57140.0,57139.0,0.02741671]
[1725507425846,0.245029,57136.0,57128.0,0.3866]
[1725507426065,0.122527,57131.0,57128.0,0.3866]
[1725507426283,0.122528,57130.0,57128.0,0.3866]
[1725507426512,0.122517,57135.0,57128.0,0.3866]
[1725507426749,0.122518,57135.0,57129.0,0.0035002]
[1725507426966,0.122518,57135.0,57128.0,0.3866]
[1725507426967,0.122518,57135.0,57128.0,0.509131]
[1725507427182,0.33665899,57143.0,57131.0,0.03502]
[1725507427406,0.122523,57132.0,57131.0,0.03502]
[1725507427625,0.367575,57131.0,57130.0,0.07140682]
[1725507427839,0.612625,57131.0,57130.0,0.09440682]
[1725507428100,0.367575,57131.0,57130.0,0.09440682]
[1725507428306,0.35841267,57131.0,57130.0,0.09440682]
[1725507428959,0.12252,57134.0,57130.0,0.09440682]
[1725507429177,0.1,57133.0,57131.0,0.02650022]
[1725507429611,0.222521,57133.0,57132.0,0.03502]
[1725507429818,0.467563,57133.0,57132.0,0.05802]
[1725507430031,0.712605,57133.0,57132.0,0.023]
[1725507430248,0.122525,57132.0,57131.0,0.023]
[1725507430482,0.122525,57132.0,57131.0,0.06808068]
[1725507430702,0.122525,57132.0,57116.0,0.182]
[1725507430703,0.367602,57127.0,57116.0,0.182]
[1725507430943,0.857738,57127.0,57116.0,0.182]
[1725507431164,1.29439699,57127.0,57116.0,0.182]
[1725507431600,1.29439699,57127.0,57115.0,0.4042]
[1725507431601,1.30816966,57127.0,57115.0,0.4042]
[1725507432028,1.30816966,57127.0,57125.0,0.05510616]
[1725507432029,0.71617905,57126.0,57125.0,0.05510616]
[1725507432258,0.72995172,57126.0,57125.0,0.05510616]
[1725507432474,2.13593801,57126.0,57125.0,0.05510616]
[1725507433206,2.12216534,57126.0,57125.0,0.05510616]
[1725507433421,2.13593882,57126.0,57125.0,0.05510616]
[1725507434283,2.38101082,57126.0,57125.0,0.05510616]
[1725507434497,2.16340592,57126.0,57125.0,0.05510616]
[1725507436254,2.40847792,57126.0,57125.0,0.05510616]
[1725507436473,2.16340592,57126.0,57125.0,0.05510616]
[1725507436688,2.13593882,57126.0,57125.0,0.05510616]
[1725507437592,2.38101082,57126.0,57125.0,0.05510616]
[1725507438027,2.31404331,57126.0,57125.0,0.05510616]
[1725507438305,2.34151099,57126.0,57125.0,0.05510616]
[1725507438517,2.09643899,57126.0,57125.0,0.05510616]
[1725507438731,2.09643899,57126.0,57125.0,0.05674016]
[1725507440314,1.10313,57110.0,57109.0,0.02648237]
[1725507440756,0.71285,57110.0,57109.0,0.42448237]
[1725507440967,0.46771,57110.0,57109.0,0.42448237]
[1725507441193,0.46771,57110.0,57109.0,0.72276663]
[1725507441416,0.71285,57110.0,57109.0,0.72276663]
[1725507441837,0.71285,57110.0,57109.0,0.65216663]
[1725507442044,0.71285,57110.0,57109.0,0.54238237]
[1725507442259,0.71285,57110.0,57109.0,0.65217183]
[1725507442704,0.49327286,57110.0,57109.0,0.65217183]
[1725507443322,0.73841286,57110.0,57109.0,0.54238237]
[1725507446302,0.95799,57110.0,57109.0,0.05423824]
[1725507446532,0.858126,57101.0,57096.0,0.53000763]
[1725507446753,0.858126,57101.0,57096.0,0.52650515]
[1725507446971,0.958126,57101.0,57093.0,0.41092]
[1725507447442,0.1,57101.0,57100.0,0.39401565]
[1725507447673,0.245165,57105.0,57100.0,0.39401565]
[1725507447897,0.122589,57101.0,57100.0,0.39401565]
[1725507448109,0.23601031,57101.0,57100.0,0.39401565]
[1725507448314,0.60377831,57101.0,57100.0,0.39401565]
[1725507448558,0.35859931,57101.0,57100.0,0.39401565]
[1725507448776,0.35859931,57101.0,57100.0,0.43341722]
[1725507448988,0.60377831,57101.0,57100.0,0.43341722]
[1725507449211,0.60377831,57101.0,57100.0,0.05751722]
[1725507449866,0.245141,57110.0,57100.0,0.30303722]
[1725507449867,0.345141,57110.0,57100.0,0.30303722]
[1725507450114,0.122589,57101.0,57100.0,0.30303722]
[1725507450331,0.122589,57101.0,57100.0,0.78647141]
[1725507450544,0.367768,57101.0,57100.0,0.75145141]
[1725507450758,0.367768,57101.0,57100.0,0.67421722]
[1725507450968,0.367768,57101.0,57100.0,0.71087322]
[1725507451216,0.367768,57101.0,57100.0,1.09996735]
[1725507451691,0.1,57109.0,57100.0,1.36965883]
[1725507451927,0.122548,57121.0,57110.0,0.03502]
[1725507452148,0.122546,57121.0,57120.0,0.42252]
[1725507452368,0.122546,57121.0,57120.0,0.81161413]
[1725507452599,0.122545,57122.0,57121.0,0.22122]
[1725507452819,0.122545,57122.0,57121.0,0.63331413]
[1725507453261,0.122545,57122.0,57121.0,0.63317922]
[1725507453986,0.12254,57124.0,57121.0,0.63317922]
[1725507454231,0.01377414,57126.0,57123.0,0.03502]
[1725507454474,0.26969148,57142.0,57123.0,0.03502]
[1725507454475,0.01377418,57140.0,57126.0,0.03502]
[1725507454735,0.24502,57138.0,57136.0,0.13046005]
[1725507454951,0.24502,57138.0,57137.0,0.71631927]
[1725507454952,0.61255,57138.0,57137.0,0.71631927]
[1725507455165,0.36753,57138.0,57137.0,0.97095922]
[1725507455395,0.01377418,57139.0,57137.0,1.15944282]
[1725507455610,0.244994,57145.0,57137.0,1.15944282]
[1725507455611,0.244994,57145.0,57138.0,0.69717039]
[1725507455823,0.367489,57145.0,57144.0,0.10435883]
[1725507456050,0.122499,57143.0,57142.0,0.03502]
[1725507456308,0.244994,57145.0,57143.0,0.03502]
[1725507456309,0.122497,57144.0,57143.0,0.03502]
[1725507456544,0.122497,57144.0,57143.0,0.42382544]
[1725507456759,0.367492,57144.0,57143.0,0.44681066]
[1725507456984,0.122497,57144.0,57143.0,0.44681066]
[1725507457208,0.367492,57144.0,57143.0,0.55116298]
[1725507457683,0.612487,57144.0,57143.0,0.55116298]
[1725507457919,0.612487,57144.0,57143.0,0.0751777]
[1725507458138,0.367492,57144.0,57143.0,0.10126656]
[1725507458348,0.367492,57144.0,57143.0,0.023]
[1725507458566,0.122497,57144.0,57143.0,0.023]
[1725507458781,0.122497,57144.0,57143.0,0.44681796]
[1725507459047,0.000817,57146.0,57144.0,0.44142]
[1725507459268,0.000817,57146.0,57145.0,0.11370553]
[1725507459269,0.100817,57146.0,57145.0,0.11370553]
[1725507459510,0.000817,57146.0,57145.0,0.11370553]
[1725507459755,0.244957,57153.0,57145.0,0.45029104]
[1725507459982,0.122486,57150.0,57147.0,0.13936912]
[1725507460205,0.122486,57149.0,57148.0,0.023]
[1725507460414,0.367459,57149.0,57148.0,0.1012583]
[1725507460833,0.367459,57149.0,57148.0,0.023]
[1725507461269,0.122486,57149.0,57148.0,0.023]
[1725507461482,0.122488,57148.0,57147.0,0.023]
[1725507461905,0.122485,57150.0,57147.0,0.023]
[1725507462121,0.122488,57149.0,57147.0,0.023]
[1725507462551,0.122488,57148.0,57147.0,0.023]
[1725507462802,0.244954,57154.0,57147.0,0.023]
[1725507463006,0.244933,57159.0,57152.0,0.33665031]
[1725507463220,0.66994621,57173.0,57153.0,0.43659859]
[1725507463426,0.66994621,57173.0,57154.0,0.23160157]
[1725507463427,0.244926,57160.0,57154.0,0.23160157]
[1725507463634,0.12247,57157.0,57155.0,0.02649875]
[1725507463889,0.02744594,57165.0,57156.0,0.33665031]
[1725507464103,0.02744594,57165.0,57155.0,0.02649875]
[1725507464104,0.122451,57166.0,57160.0,0.33665031]
[1725507464316,0.244877,57172.0,57165.0,0.33665031]
[1725507464526,0.122442,57170.0,57166.0,0.19569804]
[1725507464736,0.01377421,57178.0,57170.0,0.4101]
[1725507464944,0.244852,57178.0,57171.0,0.00349768]
[1725507465179,0.122431,57175.0,57173.0,0.33665031]
[1725507465410,0.122433,57174.0,57173.0,0.33665031]
[1725507465621,0.00082,57184.0,57173.0,0.35965031]
[1725507465826,0.122431,57175.0,57174.0,0.09997503]
[1725507466036,0.367293,57175.0,57174.0,0.09797503]
[1725507466493,0.24485,57178.0,57174.0,0.09797503]
[1725507466706,0.244843,57180.0,57174.0,0.09797503]
[1725507466912,0.00082,57184.0,57174.0,0.09797503]
[1725507467116,0.12243,57176.0,57174.0,0.09797503]
[1725507467326,0.244845,57179.0,57174.0,0.09797503]
[1725507467327,0.122431,57175.0,57174.0,0.09797503]
[1725507467534,0.612155,57175.0,57174.0,0.08097503]
[1725507467980,0.857017,57175.0,57174.0,0.08097503]
[1725507468193,0.956217,57175.0,57174.0,0.08097503]
[1725507468849,0.956217,57175.0,57174.0,0.07497503]
[1725507469088,0.956217,57175.0,57174.0,0.08197503]
[1725507469321,0.711355,57175.0,57174.0,0.08197503]
[1725507469535,0.711355,57175.0,57174.0,0.09797503]
[1725507469963,0.713355,57175.0,57174.0,0.09797503]
[1725507470523,0.711355,57175.0,57174.0,0.09797503]
[1725507471537,0.221631,57175.0,57174.0,0.13307503]
[1725507471761,0.1,57175.0,57174.0,0.13307503]
[1725507471968,0.12243,57176.0,57174.0,0.13407503]
[1725507472176,0.36728,57177.0,57176.0,0.0351]
[1725507472409,0.46728,57177.0,57176.0,0.0581]
[1725507472637,0.712134,57177.0,57176.0,0.0581]
[1725507473081,0.46728,57177.0,57176.0,0.0581]
[1725507473280,0.222426,57177.0,57176.0,0.0581]
[1725507473489,0.367279,57177.0,57176.0,0.2707075]
[1725507473888,0.3655002,57177.0,57176.0,0.2707075]
[1725507474341,0.244842,57180.0,57176.0,0.6695075]
[1725507474539,0.122422,57179.0,57178.0,0.0351]
[1725507474737,0.122422,57179.0,57178.0,0.0581]
[1725507474944,0.612112,57179.0,57178.0,0.0581]
[1725507475344,0.1,57183.0,57178.0,0.0581]
[1725507475579,0.367254,57181.0,57180.0,0.0351]
[1725507475751,0.61209,57181.0,57180.0,0.0581]
[1725507475956,0.856926,57181.0,57180.0,0.0581]
[1725507476368,0.61209,57181.0,57180.0,0.0581]
[1725507476792,0.1,57183.0,57180.0,0.39475031]
[1725507476793,0.122415,57183.0,57180.0,0.39475031]
[1725507477006,0.244818,57186.0,57181.0,0.14891313]
[1725507477007,0.122408,57186.0,57181.0,0.14891313]
[1725507477220,0.122408,57186.0,57182.0,0.3992]
[1725507477451,0.244805,57189.0,57182.0,0.3992]
[1725507477452,0.01377422,57200.0,57183.0,0.02649699]
[1725507477647,0.122409,57185.0,57184.0,0.04065789]
[1725507477858,0.01377422,57200.0,57184.0,0.06365789]
[1725507478085,0.244772,57196.0,57185.0,0.02649663]
[1725507478296,0.000818,57201.0,57185.0,0.02649663]
[1725507478297,0.122401,57189.0,57187.0,0.4343]
[1725507478501,0.367197,57190.0,57189.0,0.0351]
[1725507478763,0.611995,57190.0,57189.0,0.0351]
[1725507478994,0.367197,57190.0,57189.0,0.0581]
[1725507479265,0.46696284,57190.0,57189.0,0.0551]
[1725507479705,0.71176084,57190.0,57189.0,0.0551]
[1725507479934,0.244783,57194.0,57189.0,0.0601]
[1725507480159,0.122396,57192.0,57189.0,0.0601]
[1725507480350,0.122395,57192.0,57190.0,0.0521]
[1725507480559,0.122391,57194.0,57190.0,0.0521]
[1725507480766,0.244758,57200.0,57192.0,0.36575031]
[1725507480913,0.245548,57207.0,57194.0,0.0291]
[1725507480914,0.00082,57204.0,57194.0,0.0291]
[1725507481117,0.00082,57204.0,57191.0,0.3992]
[1725507481320,0.00082,57204.0,57190.0,0.023]
[1725507481321,0.01377422,57200.0,57190.0,0.023]
[1725507481560,0.01377422,57200.0,57191.0,0.33665031]
[1725507481807,0.122392,57193.0,57192.0,0.023]
[1725507482021,0.367197,57190.0,57189.0,0.005]
[1725507482235,0.23565699,57190.0,57189.0,0.0631]
[1725507482457,0.367203,57189.0,57188.0,0.0351]
[1725507482676,0.122397,57191.0,57188.0,0.0351]
[1725507483145,0.244775,57196.0,57189.0,0.00349667]
[1725507483351,0.1,57198.0,57194.0,0.122388]
[1725507483561,0.245567,57202.0,57197.0,0.37175031]